Cogmind - Beta 15 @@@ ROGUE MODE // 2025.09.25 @ 15:27:31 Player: bluemonk Result: Destroyed by K0-XVY(R) with Subdweller Machine Gun Performance ------------- Evolutions (0) 0 Regions Visited (3) 600 Robots Destroyed (31) 155 Value Destroyed (590) 590 Prototype IDs (0) 0 Alien Tech Used (0) 0 Bonus (0) 0 TOTAL SCORE: 1345 Bonus ------- None Cogmind --------- Core Integrity 0/250 Matter 300/300 Energy 200/200 System Corruption 1% Temperature Cool (0) Movement Walking (190) Ox1 Location -10/Subcaves Parts ------- > --- POWER (1) -------- Subdweller Power Source > --- PROPULSION (2) --- Aluminum Leg Aluminum Leg > --- UTILITY (2) ------ Large Storage Unit Seismic Detector > --- WEAPON (2) ------- Riot Gun Subdweller Laser > --- INVENTORY (15) --- Subdweller Power Source Subdweller Power Source Subdweller Power Source Aluminum Leg Aluminum Leg Aluminum Leg Disposable Heat Sink Disposable Heat Sink Machine Analyzer Subdweller Optics Subdweller Laser Subdweller Beam Cannon Battle Rifle Flamer Peak State ------------ > --- POWER ------------ Subdweller Power Source > --- PROPULSION ------- Aluminum Leg Aluminum Leg > --- UTILITY ---------- Large Storage Unit Seismic Detector > --- WEAPON ----------- Riot Gun Subdweller Laser > --- INVENTORY -------- Subdweller Power Source Subdweller Power Source Subdweller Power Source Aluminum Leg Aluminum Leg Aluminum Leg Aluminum Leg Disposable Heat Sink Disposable Heat Sink Machine Analyzer Subdweller Optics Subdweller Laser Subdweller Beam Cannon Battle Rifle Flamer [Rating: 13] Favorites ----------- Power Light Ion Engine Engine Light Ion Engine Propulsion Aluminum Leg Leg Aluminum Leg Utility Seismic Detector Device Seismic Detector Storage Large Storage Unit Weapon Small Laser Energy Gun Small Laser Energy Cannon Subdweller Beam Cannon Ballistic Gun Light Assault Rifle Special Weapon Mining Laser Build | -11 -10 -10 -10 ------- Run | Yrd Mat Min Sub Slots Evolved . | . . . . Power . | . . . . Propulsion . | . . . . Utility . | . . . . Weapon . | . . . . Parts Attached 20 | 7 4 1 8 Power 5 | 1 2 . 2 Engine 5 | 1 2 . 2 Core . | . . . . Reactor . | . . . . Propulsion 4 | 2 1 . 1 Treads . | . . . . Leg 4 | 2 1 . 1 Wheel . | . . . . Hover . | . . . . Flight . | . . . . Utility 3 | 2 . 1 . Device 1 | 1 . . . Storage 2 | 1 . 1 . Processor . | . . . . Hackware . | . . . . Protection . | . . . . Artifact . | . . . . Weapon 8 | 2 1 . 5 Energy Gun 3 | 1 . . 2 Energy Cannon 1 | . . . 1 Ballistic Gun 3 | 1 1 . 1 Ballistic Cannon . | . . . . Launcher . | . . . . Special Weapon 1 | . . . 1 Impact Weapon . | . . . . Slashing Weapon . | . . . . Piercing Weapon . | . . . . Special Melee Weapon . | . . . . Unidentified Prototypes . | . . . . Parts Lost 5 | . 4 . 1 Power 2 | . 2 . . Propulsion 2 | . 1 . 1 Utility . | . . . . Weapon 1 | . 1 . . Highest Loss Streak 2 | . 2 . 1 To Critical Strikes . | . . . . Average Backups 11 | 3 7 12 14 Power 2 | . 1 2 2 Propulsion 3 | 2 2 3 3 Utility 3 | . 1 3 3 Weapon 3 | . 1 3 3 Tool/Special . | . . . . Unused Backups 29 | . 5 . 24 Power 6 | . . . 6 Propulsion 7 | . 4 . 3 Utility 10 | . 1 . 9 Weapon 6 | . . . 6 Tool/Special . | . . . . Average Slot Usage (%) 99 | . 99 100 99 Engine 13 | . 13 14 14 Leg 27 | . 28 28 27 Device 14 | . 14 14 14 Storage 14 | . 14 14 14 Energy Gun 14 | . 14 14 15 Energy Cannon 2 | . . . 5 Ballistic Gun 10 | . 14 14 7 Peak Build Rating 13 | 7 7 8 13 Average Rating 8 | 5 6 7 11 On Entrance 5 | . 7 7 8 Naked Turns . | . . . . Heaviest Build 38 | 12 12 26 38 Greatest Support 20 | 20 20 20 20 Greatest Overweight (x) 1 | . . 1 1 Average Overweight (x) . | . . . 1 Largest Inventory Capacity 15 | 8 8 15 15 Average Capacity 12 | 7 8 12 15 Most Carried 15 | 7 8 15 15 Average Carried 11 | 4 7 12 14 Final Capacity 15 | 8 8 15 15 Final Carried 15 | 7 8 15 14 Class Distribution -------------------- 69% | Mutant 30% | Scavenger-Mutant Dominant Class ---------------- Mutant | -10/Materials Mutant | -10/Mines Scavenger-Mutant | -10/Subcaves Resources | -11 -10 -10 -10 ----------- Run | Yrd Mat Min Sub Matter Collected 755 | 217 369 27 142 Remotely . | . . . . Salvage Created 1019 | 11 792 . 216 Parts 77 | 4 56 . 17 Haulers Intercepted 2 | . 2 . . Recyclers Shooed 2 | 1 1 . . Parts Field Recycled . | . . . . Retrieved Matter . | . . . . Parts Self-Destructed 7 | . . . 7 Prevented . | . . . . Kills | -11 -10 -10 -10 ------- Run | Yrd Mat Min Sub Combat Hostiles Destroyed 21 | . 16 . 5 Guns 21 | . 16 . 5 Classes Destroyed 8 | 1 6 . 1 Worker 3 | . 3 . . Tunneler 2 | 1 1 . . Hauler 2 | . 2 . . Recycler 2 | . 2 . . Watcher 1 | . 1 . . Swarmer 9 | . 9 . . Grunt 7 | . 7 . . Subdweller 5 | . . . 5 Best Kill Streak 9 | 1 9 . 1 Combat Bots Only 6 | . 6 . 1 Max Kills in Single Turn 2 | 1 2 . 1 Gunslinging 1 | . 1 . . Exploded . | . . . . Melee . | . . . . Uniques/NPCs Destroyed . | . . . . Combat | -11 -10 -10 -10 -------- Run | Yrd Mat Min Sub Hostile Shots Fired 105 | . 93 . 12 Missed 30 | . 27 . 3 Hits 75 | . 66 . 9 Projectile 75 | . 66 . 9 Critical Strikes 1 | . . . 1 Damage Taken 925 | . 654 . 271 Core 264 | . 141 . 123 Absorbed by Shields . | . . . . Core Remaining (%) 100 | 100 . . . Volleys Fired 90 | 2 72 1 15 Largest 2 | 2 2 2 2 Hottest 110 | 60 60 60 110 Shots Fired 177 | 4 144 2 27 Gun 174 | 4 144 2 24 Cannon . | . . . . Launcher . | . . . . Special 3 | . . . 3 Kinetic 86 | 2 72 1 11 Thermal 90 | 2 72 1 15 Explosive . | . . . . Electromagnetic 1 | . . . 1 Robot Hit Streak 10 | 3 7 2 10 Robot Miss Streak 7 | 1 7 . 3 Penetration Max . | . . . . Secondary Targets 3 | . 3 . . Max Gunslinging Chain 1 | . 1 . . Shots Hit Robots 99 | 3 77 2 17 Core Hits 48 | 2 36 1 9 Critical Kills . | . . . . Critical Parts Destroyed . | . . . . Critical Strikes . | . . . . Melee Attacks . | . . . . Impact . | . . . . Slashing . | . . . . Piercing . | . . . . Sneak Attacks . | . . . . Combat Hostiles . | . . . . Follow-up Attacks . | . . . . Damage Inflicted 1317 | 33 935 20 329 Guns 1313 | 33 931 20 329 Cannons . | . . . . Explosions . | . . . . Melee . | . . . . Ramming 4 | . 4 . . Kinetic 626 | 23 426 9 168 Thermal 678 | 10 505 11 152 Explosive . | . . . . Electromagnetic 9 | . . . 9 Impact . | . . . . Slashing . | . . . . Piercing . | . . . . Highest Corruption 1 | . 1 1 1 Average Corruption 1 | . 1 1 1 Corruption Purged . | . . . . Corruption Blocked . | . . . . Effects 24 | . 3 8 13 Message Errors 8 | . 1 2 5 Matter Fused 7 | . . 2 5 Heat Flow Errors 3 | . . 2 1 Energy Discharges 3 | . . 1 2 Data Loss (minor) 2 | . 1 1 . Misfires 1 | . 1 . . Overload Shots . | . . . . Overflow Damage . | . . . . Projectiles . | . . . . Explosions . | . . . . Melee . | . . . . Knockbacks . | . . . . Impact . | . . . . Kinetic . | . . . . Secondary . | . . . . Self-Inflicted Damage . | . . . . Shots . | . . . . Rammed . | . . . . Targets Rammed 1 | . 1 . . Kicked 1 | . 1 . . Crushed . | . . . . Highest Temperature 232 | . 100 232 76 Average Temperature 35 | . 27 85 38 Received Heat Transfer 291 | . 231 . 60 Siege Activations . | . . . . Martial Activations . | . . . . Shielding Activations . | . . . . Robots Disrupted . | . . . . Combat Hostiles . | . . . . Robots Corrupted . | . . . . Combat Hostiles . | . . . . Parts Fried . | . . . . Impact Corruptions . | . . . . Robots Melted . | . . . . Combat Hostiles . | . . . . Parts Melted 2 | . 2 . . Heat Transferred 1400 | 25 1150 25 200 Parts Sabotaged . | . . . . Parts Stolen . | . . . . Parts Stripped . | . . . . Power Chain Reactions . | . . . . Alert | -11 -10 -10 -10 ------- Run | Yrd Mat Min Sub Maximum Alert Level . | . . . . Low Security (%) 100 | 100 100 100 . Level 1 . | . . . . Level 2 . | . . . . Level 3 . | . . . . Level 4 . | . . . . Level 5 . | . . . . High Security . | . . . . Max Security . | . . . . Peak Influence 173 | 5 173 51 . Initial 51 | . . 51 . Average 27 | . 56 3 . Influence Increases 450 | 5 445 . . Destroy 0b10 Robot/C 320 | . 320 . . Destroy 0b10 Robot/NC 50 | 5 45 . . Destroy Leader 66 | . 66 . . Successful Hack 14 | . 14 . . Influence Decreases 450 | 5 314 131 . Entered New Map 80 | . . 80 . Time Decay 330 | 5 274 51 . Lost Part 40 | . 40 . . Squads Dispatched 2 | . 2 . . Investigation 2 | . 2 . . Extermination . | . . . . Reinforcement . | . . . . Assault . | . . . . Garrison . | . . . . Intercept . | . . . . Searches Triggered . | . . . . Construction Impeded . | . . . . Haulers Reinforced . | . . . . Active Scanning Responses . | . . . . Cargo Convoy Interrupts . | . . . . Stealth | -11 -10 -10 -10 --------- Run | Yrd Mat Min Sub Distress Signals 2 | . 2 . . Communications Jammed . | . . . . Distress Signals . | . . . . Times Spotted 29 | . 23 . 6 Peak Tracking Total 5 | . 5 . 1 Tactical Retreats . | . . . . Traps | -11 -10 -10 -10 ------- Run | Yrd Mat Min Sub Traps Triggered 4 | . 3 . 1 Indirectly . | . . . . Trap Hack Attempts . | . . . . Triggered . | . . . . Disarmed . | . . . . Reprogrammed . | . . . . Reused . | . . . . Traps Extracted . | . . . . Installed . | . . . . Triggered . | . . . . Machines | -11 -10 -10 -10 ---------- Run | Yrd Mat Min Sub Machines Disabled . | . . . . Max in Single Turn . | . . . . Machines Repaired . | . . . . Machines Dismantled . | . . . . Machines Sabotaged . | . . . . Overloaded Fab Kills . | . . . . Hacking | -11 -10 -10 -10 --------- Run | Yrd Mat Min Sub Machines Accessed 6 | . 6 . . Terminals 5 | . 5 . . Fabricators . | . . . . Repair Stations . | . . . . Recycling Units 1 | . 1 . . Scanalyzers . | . . . . Garrison Access . | . . . . Total Hacks 23 | . 23 . . Successful 11 | . 11 . . Failed 12 | . 12 . . Catastrophic 1 | . 1 . . Database Lockouts . | . . . . Manual . | . . . . Terminals 21 | . 21 . . Fabricators . | . . . . Repair Stations . | . . . . Recycling Units 2 | . 2 . . Scanalyzers . | . . . . Garrison Access . | . . . . Terminal Hacks 10 | . 10 . . Robot Analysis 2 | . 2 . . Alert Level 4 | . 4 . . Dispatch Records 1 | . 1 . . Maintenance Status 2 | . 2 . . Hauler Manifests 1 | . 1 . . Fabricator Hacks . | . . . . Repair Station Hacks . | . . . . Recycling Unit Hacks 1 | . 1 . . Report Inventory 1 | . 1 . . Scanalyzer . | . . . . Garrison Access Hacks . | . . . . Unauthorized Hacks . | . . . . Terminals . | . . . . Fabricators . | . . . . Repair Stations . | . . . . Recycling Units . | . . . . Scanalyzers . | . . . . Garrison Access . | . . . . Data Cores Recovered . | . . . . Used . | . . . . Hacking Detections 6 | . 6 . . Full Trace Events . | . . . . Feedback Events . | . . . . Feedback Blocked . | . . . . Robot Schematics Acquired . | . . . . Robots Built . | . . . . Authchips . | . . . . Time . | . . . . Total Robot Build Rating . | . . . . Part Schematics Acquired . | . . . . Parts Built . | . . . . Authchips . | . . . . Time . | . . . . Total Part Build Rating . | . . . . Parts Repaired . | . . . . Time . | . . . . Parts Recycled . | . . . . Recycled Matter . | . . . . Retrieved Matter . | . . . . Retrieved Components . | . . . . Parts Scanalyzed . | . . . . Part Schematics Acquired . | . . . . Parts Damaged . | . . . . Bothacking | -11 -10 -10 -10 ------------ Run | Yrd Mat Min Sub Used RIF Installer . | . . . . Robots Hacked . | . . . . Non-combat . | . . . . Combat . | . . . . Robot Hacks Applied . | . . . . Relay Couplers Released . | . . . . Fabnet Peak Effective % . | . . . . Robots Rewired . | . . . . Allies Hacked . | . . . . Hacks Repelled . | . . . . Allies | -11 -10 -10 -10 -------- Run | Yrd Mat Min Sub Total Allies . | . . . . Largest Group . | . . . . Highest-Rated Group . | . . . . Highest-Rated Ally . | . . . . Total Orders . | . . . . Ally Attacks . | . . . . Total Damage . | . . . . Kills . | . . . . Allies Corrupted . | . . . . Allies Melted . | . . . . Intel | -11 -10 -10 -10 ------- Run | Yrd Mat Min Sub Active Infowar (turns) 3510 | 26 940 987 1557 Seismic 3510 | 26 940 987 1557 Robot Analysis Total 2 | . 2 . . Derelict Logs Recovered 2 | . . 1 1 Drone Launches . | . . . . Drone Recoveries . | . . . . Exploration | -11 -10 -10 -10 ------------- Run | Yrd Mat Min Sub Turns Passed 3614 | 130 940 987 1557 Spaces Moved 1776 | 93 524 449 710 Core 6 | 6 . . . Treads . | . . . . Legs 1770 | 87 524 449 710 Wheels . | . . . . Hover . | . . . . Flight . | . . . . Fastest Speed 50 | 50 120 120 190 Average Speed 154 | 115 120 148 190 Slowest Speed 190 | 120 120 190 190 Overloaded Moves . | . . . . Propulsion Burnouts . | . . . . Robots Hopped . | . . . . Potential Cave-ins . | . . . . Cave-ins Triggered . | . . . . Exploration Rate (%) 50 | 4 74 87 36 Regions Visited 3 Branch Regions 2 Pre-discovered Areas 1 | . . . 1 Known Exits Taken . | . . . . Unknown Exits Taken 3 | 1 1 1 . Scrap Searched 8 | . . 1 7 Spaces Dug . | . . . . Terrain Destroyed . | . . . . Melee . | . . . . Projectile . | . . . . AOE . | . . . . Terrain Rammed . | . . . . Walls Destroyed . | . . . . Machines Disabled . | . . . . Actions | -11 -10 -10 -10 --------- Run | Yrd Mat Min Sub Total 2465 | 108 697 770 890 Wait 514 | . 80 310 124 Move 1773 | 92 523 448 710 Hop . | . . . . Pick Up 41 | 7 11 8 15 Fast Attach 7 | 7 . . . Attach 5 | . 4 . 1 Detach . | . . . . Swap 8 | . . 1 7 Drop 26 | . 6 2 18 Fire 90 | 2 72 1 15 Melee . | . . . . Ram . | . . . . Kick 1 | . 1 . . Crush . | . . . . Escape Stasis . | . . . . Rewire . | . . . . Trap . | . . . . Miscellaneous . | . . . . Route ------- -11/Scrapyard -10/Materials (discovered 3 exits: [*Mat x2] / [*Min]) -10/Mines (discovered 3 exits: [*Mat x2] / [*Sub]) -10/Subcaves History --------- Turn | Location | Event 3 | -11/Scrapyard | Discovered new exit (range 16) 131 | -11/Scrapyard | Entered Materials 289 | -10/Materials | Discovered new exit (range 7) 317 | -10/Materials | Build established: Mutant 713 | -10/Materials | Discovered new exit (range 12) 938 | -10/Materials | Core integrity fell below 50% 971 | -10/Materials | Discovered new exit (range 7) 1071 | -10/Materials | Entered Mines 1103 | -10/Mines | Learned Materials machine intel 1340 | -10/Mines | Discovered new exit (range 9) 1386 | -10/Mines | Found DCF Scrap (16 items) 1437 | -10/Mines | Discovered new exit (range 5) 2042 | -10/Mines | Discovered new exit (range 5) 2058 | -10/Mines | Entered Subcaves 2059 | -10/Subcaves | Approached by a straggling Scientist 2260 | -10/Subcaves | Learned Materials stockpile data 2394 | -10/Subcaves | Learned location of Zion (-7) 2394 | -10/Subcaves | Met a Zionite searching for "candidates" 2443 | -10/Subcaves | Shifting Twisted Machinery released Sub. Power Source 2446 | -10/Subcaves | Shifting Twisted Machinery released Sub. Power Source 2709 | -10/Subcaves | Core integrity fell below 20% 2786 | -10/Subcaves | Shifting Twisted Machinery released Battle Rifle 2787 | -10/Subcaves | Shifting Twisted Machinery released Sub. Optics 2928 | -10/Subcaves | Build established: Scavenger-Mutant 3615 | -10/Subcaves | Destroyed by K0-XVY(R) with Subdweller Machine Gun Last Messages --------------- Found Humpback. Found 39 Matter. WYL,YF8AG8ZWK=5I:|6VZDM3XVVJLU|BSJ7 I:&H768TGNCB9HVO6ZSTL0DWVVALN#SF:I Searching scrap... Found Riot Gun. Found 63 Matter. Dropped Sub. Machine Gun. Acquired Riot Gun. Acquired 10 matter. WD0RJH1IR 6UI93IBOX2%BPM%7M2CYBNLT Aluminum Leg destroyed. Y2-C3Y(R) destroyed. System corrupted: Heat flow error (+114). Acquired 10 matter. Dropped Disposable Heat Sink. Acquired Scrap Shield. Dropped Scrap Shield. Acquired Disposable Heat Sink. JM T%BU7VCS=,9R,ZDQPAB7TSB Map ----- +----------------------------------------------------+ | ???????????????????????????????????????????? | | ???????????????????????????????????????????? | | ???????????????????????????????????????????? | | ???????????????????????????????????????????? | | ???????????????????????????????????????????? | | ???????????????????????????????????????????? | | ???????????????????????????????????????????? | | ???????????????????????????????????????????? | | ???????????????????????????????????????????? | | ???????????????????????????????????????????? | | ??????????????????????? ???????????????????? | | ??????????????????????? ???????????????????? | | ????????????????##??#"? ???????????????????? | | ????????????????? #?#"" ??????????????????? | | ?????????????????? ##"" #?###??????????????? | | ?????????????????? ""## #??????????????? | | ??????????????????? R"" #??????????????? | | ???????????????????? #??????????????? | | ??????????????????### #??????????????? | | ?????????????????## #??????????????? | | ????????????????## ???????????????? | | ????????????????#" #????????????????? | | ????????????????# #?????????????????? | | ????????????????# ##????????????????? | | ????????????????# " ##???????????????? | | ????????????????# """ @ #???????????????? | | ????????????????# """"" ##???????????????? | | ???????????????## """ #????????????????? | | ???????????????# " #????????????????? | | ???????????????### ##????????????????? | | ?????????????????## ##?????????????????? | | ??????????????????# ####??????????????????? | | ?????????????????## #??????????????????? | | ?????????????????# #??????????????????? | | ????????#####????## ##?????????????????? | | ???????## #?????# #### #?????????????????? | | ???????# ##????###?#[##?????????????????? | | ???????# #####????# ##?????????????????? | | ???????# #????##%#?????????????????? | | ##??????# ##????# #?????????????????? | | # #??#### ## #???##%#?????????????????? | | ### ## ##### ##?????????????????? | | *#=##??????????????????? | | !*%# #??????????????????? | | # ## ##|# #??????????????????? | | ##### ### #??????????????????? | | ???## ### ## #??????????????????? | | #### ## # #??????????????????? | | %## ### #??????????????????? | | |"##" #?## # ?????????????????? | +----------------------------------------------------+ Best States ------------- Heat Dissipation 25 Energy Generation 15 Energy Capacity 200 Matter Stores 300 Matter Capacity 300 Sight Range 16 Terrain Scan Density 10 Evasion (%) 55 Item Schematics ----------------- None Robot Schematics ------------------ None Fabricated ------------ Nothing Repaired ---------- Nothing Alien Tech Used ----------------- None Achievements -------------- None Challenges ------------ None Game ------ Seed MultinovaMetaJets Manual? 0 Play Time 00:33:33 Cumulative 40.6 hours Start 2025.09.25 @ 14:55:28 End 2025.09.25 @ 15:27:31 Sessions 1 Manual Loads 0 Difficulty Rogue Special Mode None Game No. 65 Rogue 65 Adventurer 0 Explorer 0 Win Type - Total 0 Types 0/0/0/0/0/0/0/0/0/0 Lore% 20 Gallery% 32 Achievement% 27 Wizard Run 0 Options --------- Layout 1 ASCII 0 Keyboard 0 Movement Numpad Keybinds 0 Fullscreen 1 Font 24/Smallcaps Map View 50x35 Zoom Use 0% Tactical HUD 0 Map Filters NONE Filters NONE Steam 1 RUN: 1b43aac5-2172-494a-9df0-1b6899a09e06